Cogmind - Beta 9.6 @@@ ROGUE MODE // 2020.04.29 @ 02:09:26 Player: ptdel Result: Destroyed by D-53 Grenadier with Mini Grenade Launcher Performance ------------- Evolutions (0) 0 Regions Visited (2) 400 Robots Destroyed (32) 160 Value Destroyed (581) 581 Prototype IDs (2) 40 Alien Tech Used (0) 0 Bonus (-83) -83 TOTAL SCORE: 1098 Bonus ------- Follower Combat Kills 14 Friendly Fire -97 Cogmind --------- Core Integrity 0/250 Matter 194/300 Energy 100/100 System Corruption 4% Temperature Cool (0) Movement Core (600) Ox11 Location -10/Mines Parts ------- > --- POWER (1) -------- (None) > --- PROPULSION (2) --- (None) > --- UTILITY (2) ------ Large Storage Unit Large Storage Unit > --- WEAPON (2) ------- Rocket Launcher > --- INVENTORY (16) --- Ion Engine Light Nuclear Core Flight Unit Flight Unit VTOL Module VTOL Module VTOL Module VTOL Module Structural Scanner Sensor Array Signal Interpreter ECM Suite Core Shielding Utility Shielding Light Cannon Flail Peak State ------------ > --- POWER ------------ Light Ion Engine > --- PROPULSION ------- Compact Wheel Compact Wheel > --- UTILITY ---------- Large Storage Unit Large Storage Unit > --- WEAPON ----------- Light Cannon Flail > --- INVENTORY -------- Ion Engine Light Nuclear Core Aluminum Leg Aluminum Leg VTOL Module VTOL Module VTOL Module VTOL Module Improved Heat Sink Structural Scanner Sensor Array Signal Interpreter ECM Suite Light Cannon [Rating: 10] Favorites ----------- Power Ion Engine Engine Ion Engine Propulsion Light Treads Treads Light Treads Wheel Compact Wheel Utility Small Storage Unit Storage Small Storage Unit Weapon Small Laser Energy Gun Small Laser Ballistic Gun Assault Rifle Ballistic Cannon Light Cannon Launcher Rocket Launcher Impact Weapon Flail Build | -11 -10 -10 ------- Run | Scr Mat Min Slots Evolved . | . . . Power . | . . . Propulsion . | . . . Utility . | . . . Weapon . | . . . Parts Attached 21 | 6 14 1 Power 4 | 1 3 . Engine 4 | 1 3 . Core . | . . . Reactor . | . . . Propulsion 4 | 2 2 . Treads 2 | 2 . . Leg . | . . . Wheel 2 | . 2 . Hover . | . . . Flight . | . . . Utility 4 | 1 3 . Device . | . . . Storage 4 | 1 3 . Processor . | . . . Hackware . | . . . Protection . | . . . Artifact . | . . . Weapon 9 | 2 6 1 Energy Gun 4 | 1 3 . Energy Cannon . | . . . Ballistic Gun 1 | 1 . . Ballistic Cannon 2 | . 2 . Launcher 1 | . . 1 Special Weapon . | . . . Impact Weapon 1 | . 1 . Slashing Weapon . | . . . Piercing Weapon . | . . . Special Melee Weapon . | . . . Unidentified Prototypes . | . . . Parts Lost 8 | . 4 4 Power 1 | . . 1 Propulsion 4 | . 2 2 Utility . | . . . Weapon 3 | . 2 1 Highest Loss Streak 4 | . 3 4 Average Slot Usage (%) 94 | . 94 97 Engine 13 | . 13 13 Treads 17 | . 21 . Wheel 7 | . 3 26 Storage 27 | . 27 28 Energy Gun 13 | . 15 . Ballistic Gun 6 | . 7 . Ballistic Cannon 5 | . 1 26 Impact Weapon 1 | . 1 . Naked Turns . | . . . Heaviest Build 42 | 12 41 42 Greatest Support 40 | 40 40 32 Greatest Overweight (x) 6 | 1 6 2 Average Overweight (x) . | . . 1 Largest Inventory Capacity 16 | 6 16 16 Average Capacity 11 | 5 10 16 Most Carried 16 | 6 16 16 Average Carried 10 | 4 9 16 Final Capacity 16 | 6 16 16 Final Carried 16 | 6 16 16 Class Distribution -------------------- 100% | Mutant Dominant Class ---------------- Mutant | -10/Materials Mutant | -10/Mines Resources | -11 -10 -10 ----------- Run | Scr Mat Min Matter Collected 540 | 223 259 58 Remotely . | . . . Salvage Created 742 | . 619 123 Parts 50 | . 46 4 Haulers Intercepted . | . . . Recyclers Shooed . | . . . Parts Field Recycled . | . . . Retrieved Matter . | . . . Parts Self-Destructed . | . . . Prevented . | . . . Kills | -11 -10 -10 ------- Run | Scr Mat Min Combat Hostiles Destroyed 29 | . 17 12 Melee 1 | . 1 . Guns 16 | . 16 . Cannons 3 | . . 3 AOE 9 | . . 9 Classes Destroyed 7 | . 5 2 Recycler 1 | . 1 . Operator 1 | . 1 . Watcher 1 | . 1 . Swarmer 9 | . 8 1 Grunt 11 | . 9 2 Demolisher 1 | . . 1 Assembled 8 | . . 8 Best Kill Streak 9 | . 4 9 Combat Bots Only 9 | . 4 9 Max Kills in Single Turn 3 | . 1 3 Gunslinging . | . . . Exploded 3 | . . 3 Melee 1 | . 1 . Uniques/NPCs Destroyed . | . . . Combat | -11 -10 -10 -------- Run | Scr Mat Min Damage Taken 1229 | . 696 533 Core 270 | . 108 162 Absorbed by Shields . | . . . Core Remaining (%) 100 | 100 . . Volleys Fired 60 | . 47 13 Largest 2 | . 2 2 Hottest 90 | . 90 70 Shots Fired 118 | . 93 25 Gun 93 | . 93 . Cannon 17 | . . 17 Launcher 8 | . . 8 Special . | . . . Kinetic 51 | . 34 17 Thermal 46 | . 46 . Explosive 8 | . . 8 Electromagnetic 13 | . 13 . Robot Hit Streak 7 | . 7 5 Robot Miss Streak 3 | . 3 1 Penetration Max . | . . . Secondary Targets . | . . . Shots Hit Robots 73 | . 57 16 Core Hits 57 | . 28 29 Critical Hits . | . . . Critical Kills . | . . . Critical Parts Destroyed . | . . . Melee Attacks 2 | . 2 . Impact 2 | . 2 . Slashing . | . . . Piercing . | . . . Sneak Attacks 1 | . 1 . Combat Hostiles . | . . . Follow-up Attacks . | . . . Damage Inflicted 1623 | . 670 953 Guns 595 | . 595 . Cannons 175 | . . 175 Explosions 773 | . . 773 Melee 75 | . 75 . Ramming 5 | . . 5 Kinetic 360 | . 185 175 Thermal 309 | . 309 . Explosive 773 | . . 773 Electromagnetic 101 | . 101 . Impact 75 | . 75 . Slashing . | . . . Piercing . | . . . Highest Corruption 4 | . . 4 Average Corruption 4 | . . 4 Corruption Purged . | . . . Effects 1 | . . 1 Message Errors 1 | . . 1 Overload Shots . | . . . Overflow Damage 14 | . . 14 Projectiles . | . . . Explosions 14 | . . 14 Melee . | . . . Knockbacks 2 | . . 2 Impact . | . . . Kinetic 2 | . . 2 Secondary . | . . . Self-Inflicted Damage 80 | . . 80 Shots 2 | . . 2 Rammed 1 | . . 1 Targets Rammed 1 | . . 1 Kicked . | . . . Crushed . | . . . Highest Temperature 213 | . 213 54 Average Temperature 42 | . 54 15 Received Heat Transfer 276 | . 249 27 Effects 1 | . 1 . Interference 1 | . 1 . Siege Activations . | . . . Robots Corrupted . | . . . Combat Hostiles . | . . . Parts Fried . | . . . Impact Corruptions . | . . . Robots Melted . | . . . Combat Hostiles . | . . . Parts Melted 1 | . 1 . Heat Transferred 748 | . 748 . Parts Sabotaged . | . . . Parts Stolen . | . . . Parts Stripped . | . . . Power Chain Reactions . | . . . Missiles Intercepted . | . . . Alert | -11 -10 -10 ------- Run | Scr Mat Min Peak Influence 182 | . 182 149 Average Influence 84 | . 90 85 Maximum Alert Level . | . . . Low Security (%) 100 | 100 100 100 Level 1 . | . . . Level 2 . | . . . Level 3 . | . . . Level 4 . | . . . Level 5 . | . . . High Security . | . . . Max Security . | . . . Squads Dispatched 4 | . 4 . Investigation 1 | . 1 . Extermination . | . . . Reinforcement 3 | . 3 . Assault . | . . . Garrison . | . . . Intercept . | . . . Construction Impeded . | . . . Haulers Reinforced . | . . . Stealth | -11 -10 -10 --------- Run | Scr Mat Min Distress Signals 3 | . 3 . Communications Jammed . | . . . Distress Signals . | . . . Times Spotted 59 | . 32 27 Peak Tracking Total 18 | . 6 18 Tactical Retreats 2 | . 2 . Traps | -11 -10 -10 ------- Run | Scr Mat Min Traps Triggered 2 | . 2 . Indirectly . | . . . Trap Hack Attempts . | . . . Triggered . | . . . Disarmed . | . . . Reprogrammed . | . . . Reused . | . . . Traps Extracted . | . . . Installed . | . . . Triggered . | . . . Machines | -11 -10 -10 ---------- Run | Scr Mat Min Machines Disabled . | . . . Max in Single Turn . | . . . Machines Sabotaged . | . . . Garrisons Compromised . | . . . Overloaded Fab Kills . | . . . Fab Network Shutdowns . | . . . Hacking | -11 -10 -10 --------- Run | Scr Mat Min Machines Accessed 5 | . 5 . Terminals 5 | . 5 . Fabricators . | . . . Repair Stations . | . . . Recycling Units . | . . . Scanalyzers . | . . . Garrison Access . | . . . Total Hacks 8 | . 8 . Successful 3 | . 3 . Failed 5 | . 5 . Catastrophic 1 | . 1 . Database Lockouts . | . . . Manual 4 | . 4 . Terminals 8 | . 8 . Fabricators . | . . . Repair Stations . | . . . Recycling Units . | . . . Scanalyzers . | . . . Garrison Access . | . . . Terminal Hacks 3 | . 3 . Prototype ID Bank 1 | . 1 . Branch Access Points 1 | . 1 . Zone Layout 1 | . 1 . Fabricator Hacks . | . . . Repair Station Hacks . | . . . Recycling Unit Hacks . | . . . Scanalyzer . | . . . Garrison Access Hacks . | . . . Unauthorized Hacks . | . . . Terminals . | . . . Fabricators . | . . . Repair Stations . | . . . Recycling Units . | . . . Scanalyzers . | . . . Garrison Access . | . . . Data Cores Recovered . | . . . Used . | . . . Hacking Detections 4 | . 4 . Full Trace Events . | . . . Feedback Events . | . . . Feedback Blocked . | . . . Robot Schematics Acquired . | . . . Robots Built . | . . . Matter . | . . . Time . | . . . Total Robot Build Rating . | . . . Part Schematics Acquired . | . . . Parts Built . | . . . Matter . | . . . Time . | . . . Total Part Build Rating . | . . . Parts Repaired . | . . . Time . | . . . Parts Recycled . | . . . Recycled Matter . | . . . Retrieved Matter . | . . . Retrieved Components . | . . . Parts Scanalyzed . | . . . Part Schematics Acquired . | . . . Parts Damaged . | . . . Bothacking | -11 -10 -10 ------------ Run | Scr Mat Min Used RIF Installer . | . . . Robots Hacked . | . . . Non-combat . | . . . Combat . | . . . Robot Hacks Applied . | . . . Relay Couplers Released . | . . . Robots Rewired . | . . . Allies Hacked . | . . . Hacks Repelled . | . . . Allies | -11 -10 -10 -------- Run | Scr Mat Min Total Allies 2 | . . 2 Largest Group 2 | . . 2 Highest-Rated Group 45 | . . 45 Highest-Rated Ally 31 | . . 31 Total Orders . | . . . Ally Attacks 9 | . . 9 Total Damage 124 | . . 124 Kills 4 | . . 4 Allies Corrupted . | . . . Allies Melted . | . . . Intel | -11 -10 -10 ------- Run | Scr Mat Min Robot Analysis Total . | . . . Derelict Logs Recovered 1 | . . 1 Drone Launches . | . . . Drone Recoveries . | . . . Exploration | -11 -10 -10 ------------- Run | Scr Mat Min Turns Passed 1630 | 94 1255 281 Spaces Moved 913 | 55 652 206 Core 19 | 13 6 . Treads 570 | 42 528 . Legs . | . . . Wheels 324 | . 118 206 Hover . | . . . Flight . | . . . Fastest Speed 50 | 50 100 110 Average Speed 144 | 140 155 110 Slowest Speed 350 | 160 350 120 Overloaded Moves . | . . . Propulsion Burnouts . | . . . Robots Hopped . | . . . Cave-ins Triggered . | . . . Exploration Rate (%) 44 | 5 86 41 Regions Visited 2 Branch Regions 1 Pre-discovered Areas . | . . . Known Exits Taken 1 | . 1 . Unknown Exits Taken 1 | 1 . . Scrap Searched . | . . . Spaces Dug . | . . . Terrain Destroyed 82 | . . 82 Melee . | . . . Projectile . | . . . AOE 82 | . . 82 Actions | -11 -10 -10 --------- Run | Scr Mat Min Total 1111 | 72 804 235 Wait 54 | . 42 12 Move 911 | 54 651 206 Hop . | . . . Pick Up 45 | 12 32 1 Fast Attach . | . . . Attach 14 | 6 8 . Detach . | . . . Swap 7 | . 6 1 Drop 17 | . 16 1 Fire 60 | . 47 13 Melee 2 | . 2 . Ram 1 | . . 1 Kick . | . . . Crush . | . . . Escape Stasis . | . . . Rewire . | . . . Trap . | . . . Miscellaneous . | . . . Route ------- -11/Scrapyard -10/Materials (discovered 2 exits: [*Mat] / *Min) -10/Mines (discovered 1 exit: [*Mat]) History --------- Turn | Location | Event 11 | -11/Scrapyard | Discovered new exit (range 16) 95 | -11/Scrapyard | Entered Materials 302 | -10/Materials | Build established: Mutant 645 | -10/Materials | Identified exit to Mines 880 | -10/Materials | Discovered new exit (range 11) 1198 | -10/Materials | Lost 3 parts (1n2w) 1350 | -10/Materials | Entered Mines 1380 | -10/Mines | Core integrity fell below 50% 1544 | -10/Mines | Discovered new exit (range 7) 1575 | -10/Mines | Learned 8 Materials zone layouts 1588 | -10/Mines | Assembled infested the area 1593 | -10/Mines | Assisted by a Guerilla fighting off Assembled 1596 | -10/Mines | Received a Rocket Launcher from a helpful Derelict 1628 | -10/Mines | Core integrity fell below 20% 1631 | -10/Mines | Destroyed by D-53 Grenadier with Mini Grenade Launcher Last Messages --------------- 01612_ as-05866 destroyed. 01613_ as-54069 destroyed. 01613_ HM-RT1(g) destroyed. 01613_ Com. Wheel destroyed. 01614_ The unstable cave ceiling collapses. 01620_ Com. Wheel destroyed. 01620_ System corrupted by crushing effect (+4). 01620_ Knocked back. 01621_ as-71006 destroyed. 01622_ The unstable cave ceiling collapses. 01624_ as-16402 knocked back. 01624_ as-16402 destroyed. 01624_ as-61915 destroyed. 01625_ The unstable cave ceiling collapses. 01625_ Lgt. Ion Engine destroyed. 01626_ The unstable cave ceiling collapses. 01628_ Lgt. Cannon destroyed. 01630_ KF 01630_ D-53 Grenadier destroyed. 01631_ The unstable cave ceiling collapses. Map ----- +----------------------------------------------------+ | ???????????????????????????????????????? | | ???????????????????????????????????????? | | ???????????????????????????????????????? | | ???????????????????????????????????????? | | ???????????????????????????????????????? | | ???????????????????????????????????????? | | ???????????????????????????????????????? | | ???????????????????????????????????????? | | ???????????????????????????????????????? | | ???????????????????????????????????????? | | ???????????????????????????????????????? | | ???????????????????????????????????????? | | ???????????????????????????????????????? | | ???????????????????????????????????????? | | ?????????????????????????????????##????? | | ???????????????????????????????? #????? | | ???????????????????????????????" #????? | | ??????????????????????????????? ####?? | | ??????????????????????????##?? #?? | | ????????????????????????## ### ##? | | ??????????????????????### #? | | ?????????????????????## #? | | ????????????????????## #?? | | ????????????????????# #?? | | ?????????????????????# # # #? | | ?????????????????????# @ #? | | ?????????????????????# #? | | ??????????????????? #? | | ????????????????# d #? | | ???????????????# # # % #? | | ??????????????# ###### #? | | ????????????? #??????## #? | | ???????????? ????????? ##? | | ????????????? ??????????# ##?? | | ????????????? ???????????? #??? | | ?????????????? ???????# ##### # #??? | | ?????????????? ????????# #??? | | ????????????????????????######## # #???? | | ???????????????????????????????# #?????? | | ???????????????????????????????# #?????? | | ???????????????????????????????# #?????? | | ???????????????????????????????# #?????? | | ???????????????????????????????# #?????? | | ???????????????????????????????# #?????? | | ???????????????????????????????# #?????? | | ???????????????????????????????# #?????? | | ???????????????????????????????# #?????? | | ???????????????###?????????????# #?????? | | ?????????????## #?????????????# #?????? | | ????????????# #?????????????# #?????? | +----------------------------------------------------+ Best States ------------- Heat Dissipation 25 Energy Generation 10 Energy Capacity 250 Matter Stores 300 Matter Capacity 300 Sight Range 16 Terrain Scan Density 10 Evasion (%) 40 Recoil Reduction 2 Item Schematics ----------------- None Robot Schematics ------------------ None Fabricated ------------ Nothing Alien Tech Used ----------------- None Achievements -------------- None Challenges ------------ None Game ------ Seed ProtonSubatomicBattery Manual? 0 Play Time 00:20:10 Cumulative 37.8 hours Start 2020.04.29 @ 01:45:46 End 2020.04.29 @ 02:09:26 Sessions 1 Manual Loads 0 Difficulty Rogue Special Mode None Game No. 54 Rogue 38 Adventurer 15 Explorer 1 Win Type - Total 0 Types 0/0/0/0/0/0/0 Lore% 18 Gallery% 32 Achievement% 30 Wizard Run 0 Options --------- ASCII 0 Keyboard 0 Movement Numpad Keybinds 0 Fullscreen 1 Font 32/SmallcapsGlow Map View 76x50 Tactical HUD 1 Map Filters NONE Filters NONE Steam 1 RUN: fbf746af-c5d8-4c4b-b1e0-4957b45213c2